Workbook

Sheet Change log
A1: Changes to calculator from 2020 to 2021
A2: 1-General Agency Info
A3: Update report due date from July 1, 2020 to July 1, 2021
A4: Update Ecology contact information
A5: Add Department of Commerce into agency drop-down box
A7: 2 - Building Energy Use
A8: Modify electricity category names and directions to clarify renewable electricity
A10: 3 - Fleet Energy Use
A11: *Update default biofuel percentages; add/modify biofuel footnotes
A13: 4- GHG Emissions Summary
A14: *Summary table (cells A1:C5): exclude biogenic portion of biofuel emission, update title and category names to reflect change, add footnote, include CH4 and N2O from fleets
A16: 5-Reference Data
A17: Add Department of Commerce to Reporter table
A18: *Denotes potential quantitative impact

Sheet 1-General Agency Info
A1: Washington State Agency Greenhouse Gas (GHG) Calculator
A2: Use this calculator to determine your agency's annual GHG emissions from building energy use (purchased electricity and stationary combustion) and fleet energy use (vehicle fleets and mobile equipment). Use spreadsheets 1-3 to enter information into the yellow highlighted cells. Use spreadsheet 4 to view your agency's emissions. Hover your mouse over red triangles in the upper right-hand corner of a cell for more information about the data requested. Once you have entered your agency's information into the calculator, complete the following steps to submit your report to Ecology: 1.) Log into your Secure Access Washington Account (SAW). If you do not have an account, you will need to create one and wait for an approval email from Ecology. 2.) Go to “My services” and select “State Agency and Academia GHG Reporting Tool” – Reporters commonly make the mistake of reporting their emissions under the wrong program, so please make sure you choose the correct tool. 3.) Search for your agency by name and upload your file. Your report is due to Ecology by July 1, 2021. If you have questions or need assistance with your report, please contact Emily Bruns (emily.bruns@ecy.wa.gov).
A4: Agency Information
A5: Agency
A6: Calendar year
A7: Project lead name
A8: Project lead phone
A9: Project lead email
A10: Total # of employees (full and part-time)
A11: Total # of students, patients, offenders, etc. agency serves
A12: Agency owned space (sq. ft.)
A13: Space leased in a DES owned building (sq. ft.)
A14: Space leased from another state agency (sq. ft.)
A15: Space leased in a privately owned building (sq. ft.)
A16: Total space (sq. ft.) | B16: =SUM(B12:B15) -> 0
A18: Comments

Sheet 2-Building Energy Use
A1: Building Energy Use
A2: Use this spreadsheet to enter information about stationary sources and purchased electricity and steam into yellow highlighted cells. Include all electricity purchased, including electricity purchased from 'green' contracts. There is a section at the bottom to provide any comments.
A4: Emission Sources
A5: Did your agency have stationary combustion?
A6: Did your agency purchase electricity or steam?
A7: =IF(B6="Yes", "Was any of your electricity purchased from a green contract?", "") -> 
A9: =IF($B$5="Yes", "Stationary Combustion (Direct Emissions)", "") ->  | D9: =IF($B$6="Yes", "Purchased Electricity and Steam (Indirect Emissions)", "") -> 
A10: =IF($B$5="Yes", "Fuel type", "") ->  | B10: =IF($B$5="Yes", "Fuel quantity^", "") ->  | D10: =IF($B$6="Yes", "Type", "") ->  | E10: =IF($B$6="Yes", "Quantity^", "") ->  | F10: =IF($B$7="Yes", "CO2 emission factor (lbs CO2/MWh)*", "") ->  | G10: =IF($B$7="Yes", "CH4 emission factor (lbs CH4/MWh)*", "") ->  | H10: =IF($B$7="Yes", "N2O emission factor (lbs N2O/MWh)*", "") -> 
A11: =IF($B$5="Yes", "Natural gas (therms)", "") ->  | D11: =IF($B$6="Yes", "Purchased electricity (non-green contract, kWh)", "") -> 
A12: =IF($B$5="Yes", "Diesel (gallons)", "") ->  | D12: =IF($B$6="Yes", "Purchased steam (klbs)", "") -> 
A13: =IF($B$5="Yes", "Propane (gallons)", "") ->  | D13: =IF($B$7="Yes", "Purchased electrcity from green contract (kWh)", "") -> 
A14: =IF($B$5="Yes", "Fuel oil (gallons)", "") ->  | E14: =IF($B$6="Yes", "^Include angency owned space and privately leased space", "") ->  | F14: =IF($B$7="Yes", "*Provided on the contract, typically very low or zero", "") -> 
A15: =IF($B$5="Yes", "Gasoline (gallons)", "") -> 
B16: =IF($B$5="Yes", "^Include angency owned space and privately leased space", "") -> 
A18: Comments

Sheet 3-Fleet Energy Use
A1: Fleet Energy Use
A2: Use this spreadsheet to enter information about fleet(s) and mobile equipment owned by the agency or leased from the state motor pool into yellow highlighted cells. There is a section at the bottom to provide any comments.
A6: Emission Sources
A7: Did your agency have motor vehicles (light duty, heavy duty, on-road, or off-road)?
A8: Did your agency have boats (excluding ferries)?
A9: Did your agency have ferries?
A10: Did your agency have aircraft?
A12: =IF($B$7="Yes", "Motor Vehicles", "") -> 
A13: =IF($B$7="Yes", "Fuel type", "") ->  | B13: =IF($B$7="Yes", "Fuel quantity (gallons)", "") ->  | C13: =IF($B$7="Yes", "Biofuel (%)*", "") -> 
A14: =IF($B$7="Yes", "Gasoline", "") ->  | C14: =IF($B$7="Yes", "10%", "") -> 
A15: =IF($B$7="Yes", "Diesel: Retail purchases", "") ->  | C15: =IF($B$7="Yes", "0%", "") -> 
A16: =IF($B$7="Yes", "Diesel: WSDOT fueling stations", "") ->  | C16: =IF($B$7="Yes", "0%", "") -> 
A17: =IF($B$7="Yes", "Diesel: Bulk purchases", "") ->  | C17: =IF($B$7="Yes", "0%", "") -> 
A18: =IF($B$7="Yes", "Propane", "") ->  | C18: =IF($B$7="Yes", "0%", "") -> 
C19: =IF($B$7="Yes", "*Default percentage shown. Modify if you know the actual % biofuel for your agency. Biodiesel % at WSDOT fueling stations = 13.7%.", "") -> 
A20: =IF($B$8="Yes", "Boats (excluding ferries)", "") -> 
A21: =IF($B$8="Yes", "Fuel type", "") ->  | B21: =IF($B$8="Yes", "Fuel quantity (gallons)", "") ->  | C21: =IF($B$8="Yes", "Biofuel (%)*", "") -> 
A22: =IF($B$8="Yes", "Gasoline", "") ->  | C22: =IF($B$8="Yes", "10%", "") -> 
A23: =IF($B$8="Yes", "Diesel", "") ->  | C23: =IF($B$8="Yes", "0%", "") -> 
C24: =IF($B$8="Yes", "*Default percentage shown. Modify if you know the actual % biofuel for your agency.", "") -> 
A25: =IF($B$9="Yes", "Ferries", "") -> 
A26: =IF($B$9="Yes", "Fuel type", "") ->  | B26: =IF($B$9="Yes", "Fuel quantity (gallons)", "") ->  | C26: =IF($B$9="Yes", "Biofuel (%)*", "") -> 
A27: =IF($B$9="Yes", "Diesel", "") ->  | C27: =IF($B$9="Yes", "0%", "") -> 
C28: =IF($B$9="Yes", "*Default percentage shown. Modify if you know the actual % biofuel for your agency.", "") -> 
A29: =IF($B$10="Yes", "Aircraft", "") -> 
A30: =IF($B$10="Yes", "Fuel type", "") ->  | B30: =IF($B$10="Yes", "Fuel quantity (gallons)", "") ->  | C30: =IF($B$10="Yes", "Biofuel (%)*", "") -> 
A31: =IF($B$10="Yes", "Aviation gasoline", "") ->  | C31: =IF($B$10="Yes", "10%", "") -> 
A32: =IF($B$10="Yes", "Jet fuel", "") ->  | C32: =IF($B$10="Yes", "0%", "") -> 
C33: =IF($B$10="Yes", "*Default percentage shown. Modify if you know the actual % biofuel for your agency.", "") -> 
A34: Comments

Sheet 4- GHG Emissions Summary
A1: Fossil GHG Emissions Summary*
A2: Total building energy use | B2: =E19 -> 0 | C2: MT CO2e
A3: Total fossil fleet energy use | B3: =E37-G37 -> 0 | C3: MT CO2e
A4: Total annual fossil GHG emissions | B4: =B2+B3 -> 0 | C4: MT CO2e
A5: *Excludes biogenic portion of biofuel combustion
A7: Building Energy Use
A8: Source | B8: CO2 emissions (MT CO2) | C8: CH4 emissions (MT CH4) | D8: N2O emissions (MT N2O) | E8: Total emissions (MT CO2e)
A9: Stationary combustion
A10: Natural gas | B10: =IFERROR(IF('2-Building Energy Use'!$B$5="Yes", ('2-Building Energy Use'!B11*'5 - Reference Data'!D13), 0),0) -> 0 | C10: =IFERROR(IF('2-Building Energy Use'!$B$5="Yes", ('2-Building Energy Use'!B11*'5 - Reference Data'!F13), 0),0) -> 0 | D10: =IFERROR(IF('2-Building Energy Use'!$B$5="Yes", ('2-Building Energy Use'!B11*'5 - Reference Data'!H13), 0),0) -> 0 | E10: =B10+(C10*'5 - Reference Data'!$B$45)+(D10*'5 - Reference Data'!$B$46) -> 0
A11: Diesel | B11: =IFERROR(IF('2-Building Energy Use'!$B$5="Yes", ('2-Building Energy Use'!B12*'5 - Reference Data'!D15), 0),0) -> 0 | C11: =IFERROR(IF('2-Building Energy Use'!$B$5="Yes", ('2-Building Energy Use'!B12*'5 - Reference Data'!F15), 0),0) -> 0 | D11: =IFERROR(IF('2-Building Energy Use'!$B$5="Yes", ('2-Building Energy Use'!B12*'5 - Reference Data'!H15), 0),0) -> 0 | E11: =B11+(C11*'5 - Reference Data'!$B$45)+(D11*'5 - Reference Data'!$B$46) -> 0
A12: Propane | B12: =IFERROR(IF('2-Building Energy Use'!$B$5="Yes", ('2-Building Energy Use'!B13*'5 - Reference Data'!D16), 0),0) -> 0 | C12: =IFERROR(IF('2-Building Energy Use'!$B$5="Yes", ('2-Building Energy Use'!B13*'5 - Reference Data'!F16), 0),0) -> 0 | D12: =IFERROR(IF('2-Building Energy Use'!$B$5="Yes", ('2-Building Energy Use'!B13*'5 - Reference Data'!H16), 0),0) -> 0 | E12: =B12+(C12*'5 - Reference Data'!$B$45)+(D12*'5 - Reference Data'!$B$46) -> 0
A13: Fuel oil | B13: =IFERROR(IF('2-Building Energy Use'!$B$5="Yes", ('2-Building Energy Use'!B14*'5 - Reference Data'!D17), 0),0) -> 0 | C13: =IFERROR(IF('2-Building Energy Use'!$B$5="Yes", ('2-Building Energy Use'!B14*'5 - Reference Data'!F17), 0),0) -> 0 | D13: =IFERROR(IF('2-Building Energy Use'!$B$5="Yes", ('2-Building Energy Use'!B14*'5 - Reference Data'!H17), 0),0) -> 0 | E13: =B13+(C13*'5 - Reference Data'!$B$45)+(D13*'5 - Reference Data'!$B$46) -> 0
A14: Gasoline | B14: =IFERROR(IF('2-Building Energy Use'!$B$5="Yes", ('2-Building Energy Use'!B15*'5 - Reference Data'!D18), 0),0) -> 0 | C14: =IFERROR(IF('2-Building Energy Use'!$B$5="Yes", ('2-Building Energy Use'!B15*'5 - Reference Data'!F18), 0),0) -> 0 | D14: =IFERROR(IF('2-Building Energy Use'!$B$5="Yes", ('2-Building Energy Use'!B15*'5 - Reference Data'!H18), 0),0) -> 0 | E14: =B14+(C14*'5 - Reference Data'!$B$45)+(D14*'5 - Reference Data'!$B$46) -> 0
A15: Electricity
A16: All purchased electricity | B16: =IFERROR(IF('2-Building Energy Use'!$B$6="Yes", ('2-Building Energy Use'!$E$11*'5 - Reference Data'!C23)+B18, 0),0) -> 0 | C16: =IFERROR(IF('2-Building Energy Use'!$B$6="Yes", ('2-Building Energy Use'!$E$11*'5 - Reference Data'!E23)+C18, 0),0) -> 0 | D16: =IFERROR(IF('2-Building Energy Use'!$B$6="Yes", ('2-Building Energy Use'!$E$11*'5 - Reference Data'!G23)+D18, 0),0) -> 0 | E16: =B16+(C16*'5 - Reference Data'!$B$45)+(D16*'5 - Reference Data'!$B$46) -> 0
A17: Purchased steam | B17: =IFERROR(IF('2-Building Energy Use'!$B$6="Yes", ('2-Building Energy Use'!E12*'5 - Reference Data'!C26), 0),0) -> 0 | C17: =IFERROR(IF('2-Building Energy Use'!$B$6="Yes", ('2-Building Energy Use'!E12*'5 - Reference Data'!E26), 0),0) -> 0 | D17: =IFERROR(IF('2-Building Energy Use'!$B$6="Yes", (SUM('2-Building Energy Use'!E12:E12)*'5 - Reference Data'!G26), 0),0) -> 0 | E17: =B17+(C17*'5 - Reference Data'!$B$45)+(D17*'5 - Reference Data'!$B$46) -> 0
A18: Purchased electricity - renewable | B18: =IFERROR(IF('2-Building Energy Use'!$B$7="Yes", ('2-Building Energy Use'!E13*'5 - Reference Data'!B24), 0),0) -> 0 | C18: =IFERROR(IF('2-Building Energy Use'!$B$7="Yes", ('2-Building Energy Use'!E13*'5 - Reference Data'!E24), 0),0) -> 0 | D18: =IFERROR(IF('2-Building Energy Use'!$B$7="Yes", ('2-Building Energy Use'!E13*'5 - Reference Data'!G24), 0),0) -> 0 | E18: =B18+(C18*'5 - Reference Data'!$B$45)+(D18*'5 - Reference Data'!$B$46) -> 0
A19: Total building energy use | B19: =SUM(B16:B17,B10:B14) -> 0 | C19: =SUM(C16:C17,C10:C14) -> 0 | D19: =SUM(D16:D17,D10:D14) -> 0 | E19: =SUM(E16:E17,E10:E14) -> 0
A21: Fleet Energy Use
A22: Source | B22: CO2 emissions (MT CO2) | C22: CH4 emissions (MT CH4) | D22: N2O emissions (MT N2O) | E22: Total emissions (MT CO2e) | F22: Fossil CO2 emissions (MT CO2) | G22: Biogenic CO2 emissions (MT CO2)
A23: Motor vehicles
A24: Gasoline | B24: =F24+G24 -> 0 | C24: =IFERROR(IF('3-Fleet Energy Use'!$B$7="Yes", ((('3-Fleet Energy Use'!B14)*(1-'3-Fleet Energy Use'!C14))*'5 - Reference Data'!F34), 0),0)+IFERROR(IF('3-Fleet Energy Use'!$B$7="Yes", ((('3-Fleet Energy Use'!B14)*('3-Fleet Energy Use'!C14))*'5 - Reference Data'!F35), 0),0) -> 0 | D24: =IFERROR(IF('3-Fleet Energy Use'!$B$7="Yes", ((('3-Fleet Energy Use'!B14)*(1-'3-Fleet Energy Use'!C14))*'5 - Reference Data'!H34), 0),0)+IFERROR(IF('3-Fleet Energy Use'!$B$7="Yes", ((('3-Fleet Energy Use'!B14)*('3-Fleet Energy Use'!C14))*'5 - Reference Data'!H35), 0),0) -> 0 | E24: =B24+(C24*'5 - Reference Data'!$B$45)+(D24*'5 - Reference Data'!$B$46) -> 0 | F24: =IFERROR(IF('3-Fleet Energy Use'!$B$7="Yes", ((('3-Fleet Energy Use'!B14)*(1-'3-Fleet Energy Use'!C14))*'5 - Reference Data'!D34), 0),0) -> 0 | G24: =IFERROR(IF('3-Fleet Energy Use'!$B$7="Yes", ((('3-Fleet Energy Use'!B14)*('3-Fleet Energy Use'!C14))*'5 - Reference Data'!D35), 0),0) -> 0
A25: Diesel: Retail purchases | B25: =F25+G25 -> 0 | C25: =IFERROR(IF('3-Fleet Energy Use'!$B$7="Yes", ((('3-Fleet Energy Use'!B15)*(1-'3-Fleet Energy Use'!C15))*'5 - Reference Data'!F36), 0),0)+IFERROR(IF('3-Fleet Energy Use'!$B$7="Yes", ((('3-Fleet Energy Use'!B15)*('3-Fleet Energy Use'!C15))*'5 - Reference Data'!F37), 0),0) -> 0 | D25: =IFERROR(IF('3-Fleet Energy Use'!$B$7="Yes", ((('3-Fleet Energy Use'!B15)*(1-'3-Fleet Energy Use'!C15))*'5 - Reference Data'!H36), 0),0)+IFERROR(IF('3-Fleet Energy Use'!$B$7="Yes", ((('3-Fleet Energy Use'!B15)*('3-Fleet Energy Use'!C15))*'5 - Reference Data'!H37), 0),0) -> 0 | E25: =B25+(C25*'5 - Reference Data'!$B$45)+(D25*'5 - Reference Data'!$B$46) -> 0 | F25: =IFERROR(IF('3-Fleet Energy Use'!$B$7="Yes", ((('3-Fleet Energy Use'!B15)*(1-'3-Fleet Energy Use'!C15))*'5 - Reference Data'!D36), 0),0) -> 0 | G25: =IFERROR(IF('3-Fleet Energy Use'!$B$7="Yes", ((('3-Fleet Energy Use'!B15)*('3-Fleet Energy Use'!C15))*'5 - Reference Data'!D37), 0),0) -> 0
A26: Diesel: WSDOT fueling stations | B26: =F26+G26 -> 0 | C26: =IFERROR(IF('3-Fleet Energy Use'!$B$7="Yes", ((('3-Fleet Energy Use'!B16)*(1-'3-Fleet Energy Use'!C16))*'5 - Reference Data'!F36), 0),0)+IFERROR(IF('3-Fleet Energy Use'!$B$7="Yes", ((('3-Fleet Energy Use'!B16)*('3-Fleet Energy Use'!C16))*'5 - Reference Data'!F37), 0),0) -> 0 | D26: =IFERROR(IF('3-Fleet Energy Use'!$B$7="Yes", ((('3-Fleet Energy Use'!B16)*(1-'3-Fleet Energy Use'!C16))*'5 - Reference Data'!H36), 0),0)+IFERROR(IF('3-Fleet Energy Use'!$B$7="Yes", ((('3-Fleet Energy Use'!B16)*('3-Fleet Energy Use'!C16))*'5 - Reference Data'!H37), 0),0) -> 0 | E26: =B26+(C26*'5 - Reference Data'!$B$45)+(D26*'5 - Reference Data'!$B$46) -> 0 | F26: =IFERROR(IF('3-Fleet Energy Use'!$B$7="Yes", ((('3-Fleet Energy Use'!B16)*(1-'3-Fleet Energy Use'!C16))*'5 - Reference Data'!D36), 0),0) -> 0 | G26: =IFERROR(IF('3-Fleet Energy Use'!$B$7="Yes", ((('3-Fleet Energy Use'!B16)*('3-Fleet Energy Use'!C16))*'5 - Reference Data'!D37), 0),0) -> 0
A27: Diesel: Bulk purchases | B27: =F27+G27 -> 0 | C27: =IFERROR(IF('3-Fleet Energy Use'!$B$7="Yes", ((('3-Fleet Energy Use'!B17)*(1-'3-Fleet Energy Use'!C17))*'5 - Reference Data'!F36), 0),0)+IFERROR(IF('3-Fleet Energy Use'!$B$7="Yes", ((('3-Fleet Energy Use'!B17)*('3-Fleet Energy Use'!C17))*'5 - Reference Data'!F37), 0),0) -> 0 | D27: =IFERROR(IF('3-Fleet Energy Use'!$B$7="Yes", ((('3-Fleet Energy Use'!B17)*(1-'3-Fleet Energy Use'!C17))*'5 - Reference Data'!H36), 0),0)+IFERROR(IF('3-Fleet Energy Use'!$B$7="Yes", ((('3-Fleet Energy Use'!B17)*('3-Fleet Energy Use'!C17))*'5 - Reference Data'!H37), 0),0) -> 0 | E27: =B27+(C27*'5 - Reference Data'!$B$45)+(D27*'5 - Reference Data'!$B$46) -> 0 | F27: =IFERROR(IF('3-Fleet Energy Use'!$B$7="Yes", ((('3-Fleet Energy Use'!B17)*(1-'3-Fleet Energy Use'!C17))*'5 - Reference Data'!D36), 0),0) -> 0 | G27: =IFERROR(IF('3-Fleet Energy Use'!$B$7="Yes", ((('3-Fleet Energy Use'!B17)*('3-Fleet Energy Use'!C17))*'5 - Reference Data'!D37), 0),0) -> 0
A28: Propane | B28: =F28+G28 -> 0 | C28: =IFERROR(IF('3-Fleet Energy Use'!$B$7="Yes", ((('3-Fleet Energy Use'!B18)*(1-'3-Fleet Energy Use'!C18))*'5 - Reference Data'!F38), 0),0)+IFERROR(IF('3-Fleet Energy Use'!$B$7="Yes", ((('3-Fleet Energy Use'!B18)*('3-Fleet Energy Use'!C18))*'5 - Reference Data'!F38), 0),0) -> 0 | D28: =IFERROR(IF('3-Fleet Energy Use'!$B$7="Yes", ((('3-Fleet Energy Use'!B18)*(1-'3-Fleet Energy Use'!C18))*'5 - Reference Data'!H38), 0),0)+IFERROR(IF('3-Fleet Energy Use'!$B$7="Yes", ((('3-Fleet Energy Use'!B18)*('3-Fleet Energy Use'!C18))*'5 - Reference Data'!H38), 0),0) -> 0 | E28: =B28+(C28*'5 - Reference Data'!$B$45)+(D28*'5 - Reference Data'!$B$46) -> 0 | F28: =IFERROR(IF('3-Fleet Energy Use'!$B$7="Yes", ((('3-Fleet Energy Use'!B18)*(1-'3-Fleet Energy Use'!C18))*'5 - Reference Data'!D38), 0),0) -> 0 | G28: =IFERROR(IF('3-Fleet Energy Use'!$B$7="Yes", ((('3-Fleet Energy Use'!B18)*('3-Fleet Energy Use'!C18))*'5 - Reference Data'!D38), 0),0) -> 0
A29: Boats (excluding ferries)
A30: Gasoline | B30: =F30+G30 -> 0 | C30: =IFERROR(IF('3-Fleet Energy Use'!$B$7="Yes", ((('3-Fleet Energy Use'!B22)*(1-'3-Fleet Energy Use'!C22))*'5 - Reference Data'!F34), 0),0)+IFERROR(IF('3-Fleet Energy Use'!$B$7="Yes", ((('3-Fleet Energy Use'!B22)*('3-Fleet Energy Use'!C22))*'5 - Reference Data'!F35), 0),0) -> 0 | D30: =IFERROR(IF('3-Fleet Energy Use'!$B$7="Yes", ((('3-Fleet Energy Use'!B22)*(1-'3-Fleet Energy Use'!C22))*'5 - Reference Data'!H34), 0),0)+IFERROR(IF('3-Fleet Energy Use'!$B$7="Yes", ((('3-Fleet Energy Use'!B22)*('3-Fleet Energy Use'!C22))*'5 - Reference Data'!H35), 0),0) -> 0 | E30: =B30+(C30*'5 - Reference Data'!$B$45)+(D30*'5 - Reference Data'!$B$46) -> 0 | F30: =IFERROR(IF('3-Fleet Energy Use'!$B$7="Yes", ((('3-Fleet Energy Use'!B22)*(1-'3-Fleet Energy Use'!C22))*'5 - Reference Data'!D34), 0),0) -> 0 | G30: =IFERROR(IF('3-Fleet Energy Use'!$B$7="Yes", ((('3-Fleet Energy Use'!B22)*('3-Fleet Energy Use'!C22))*'5 - Reference Data'!D35), 0),0) -> 0
A31: Diesel | B31: =F31+G31 -> 0 | C31: =IFERROR(IF('3-Fleet Energy Use'!$B$7="Yes", ((('3-Fleet Energy Use'!B23)*(1-'3-Fleet Energy Use'!C23))*'5 - Reference Data'!F36), 0),0)+IFERROR(IF('3-Fleet Energy Use'!$B$7="Yes", ((('3-Fleet Energy Use'!B23)*('3-Fleet Energy Use'!C23))*'5 - Reference Data'!F37), 0),0) -> 0 | D31: =IFERROR(IF('3-Fleet Energy Use'!$B$7="Yes", ((('3-Fleet Energy Use'!B23)*(1-'3-Fleet Energy Use'!C23))*'5 - Reference Data'!H36), 0),0)+IFERROR(IF('3-Fleet Energy Use'!$B$7="Yes", ((('3-Fleet Energy Use'!B23)*('3-Fleet Energy Use'!C23))*'5 - Reference Data'!H37), 0),0) -> 0 | E31: =B31+(C31*'5 - Reference Data'!$B$45)+(D31*'5 - Reference Data'!$B$46) -> 0 | F31: =IFERROR(IF('3-Fleet Energy Use'!$B$7="Yes", ((('3-Fleet Energy Use'!B23)*(1-'3-Fleet Energy Use'!C23))*'5 - Reference Data'!D36), 0),0) -> 0 | G31: =IFERROR(IF('3-Fleet Energy Use'!$B$7="Yes", ((('3-Fleet Energy Use'!B23)*('3-Fleet Energy Use'!C23))*'5 - Reference Data'!D37), 0),0) -> 0
A32: Ferries
A33: Diesel | B33: =F33+G33 -> 0 | C33: =IFERROR(IF('3-Fleet Energy Use'!$B$7="Yes", ((('3-Fleet Energy Use'!B27)*(1-'3-Fleet Energy Use'!C27))*'5 - Reference Data'!F36), 0),0)+IFERROR(IF('3-Fleet Energy Use'!$B$7="Yes", ((('3-Fleet Energy Use'!B27)*('3-Fleet Energy Use'!C27))*'5 - Reference Data'!F37), 0),0) -> 0 | D33: =IFERROR(IF('3-Fleet Energy Use'!$B$7="Yes", ((('3-Fleet Energy Use'!B27)*(1-'3-Fleet Energy Use'!C27))*'5 - Reference Data'!H36), 0),0)+IFERROR(IF('3-Fleet Energy Use'!$B$7="Yes", ((('3-Fleet Energy Use'!B27)*('3-Fleet Energy Use'!C27))*'5 - Reference Data'!H37), 0),0) -> 0 | E33: =B33+(C33*'5 - Reference Data'!$B$45)+(D33*'5 - Reference Data'!$B$46) -> 0 | F33: =IFERROR(IF('3-Fleet Energy Use'!$B$7="Yes", ((('3-Fleet Energy Use'!B27)*(1-'3-Fleet Energy Use'!C27))*'5 - Reference Data'!D36), 0),0) -> 0 | G33: =IFERROR(IF('3-Fleet Energy Use'!$B$7="Yes", ((('3-Fleet Energy Use'!B27)*('3-Fleet Energy Use'!C27))*'5 - Reference Data'!D37), 0),0) -> 0
A34: Aircraft
A35: Aviation gasoline | B35: =F35+G35 -> 0 | C35: =IFERROR(IF('3-Fleet Energy Use'!$B$7="Yes", ((('3-Fleet Energy Use'!B31)*(1-'3-Fleet Energy Use'!C31))*'5 - Reference Data'!F39), 0),0)+IFERROR(IF('3-Fleet Energy Use'!$B$7="Yes", ((('3-Fleet Energy Use'!B31)*('3-Fleet Energy Use'!C31))*'5 - Reference Data'!F35), 0),0) -> 0 | D35: =IFERROR(IF('3-Fleet Energy Use'!$B$7="Yes", ((('3-Fleet Energy Use'!B31)*(1-'3-Fleet Energy Use'!C31))*'5 - Reference Data'!H39), 0),0)+IFERROR(IF('3-Fleet Energy Use'!$B$7="Yes", ((('3-Fleet Energy Use'!B31)*('3-Fleet Energy Use'!C31))*'5 - Reference Data'!H35), 0),0) -> 0 | E35: =B35+(C35*'5 - Reference Data'!$B$45)+(D35*'5 - Reference Data'!$B$46) -> 0 | F35: =IFERROR(IF('3-Fleet Energy Use'!$B$7="Yes", ((('3-Fleet Energy Use'!B31)*(1-'3-Fleet Energy Use'!C31))*'5 - Reference Data'!D39), 0),0) -> 0 | G35: =IFERROR(IF('3-Fleet Energy Use'!$B$7="Yes", ((('3-Fleet Energy Use'!B31)*('3-Fleet Energy Use'!C31))*'5 - Reference Data'!D35), 0),0) -> 0
A36: Jet fuel | B36: =F36+G36 -> 0 | C36: =IFERROR(IF('3-Fleet Energy Use'!$B$7="Yes", ((('3-Fleet Energy Use'!B32)*(1-'3-Fleet Energy Use'!C32))*'5 - Reference Data'!F40), 0),0)+IFERROR(IF('3-Fleet Energy Use'!$B$7="Yes", ((('3-Fleet Energy Use'!B32)*('3-Fleet Energy Use'!C32))*'5 - Reference Data'!F40), 0),0) -> 0 | D36: =IFERROR(IF('3-Fleet Energy Use'!$B$7="Yes", ((('3-Fleet Energy Use'!B32)*(1-'3-Fleet Energy Use'!C32))*'5 - Reference Data'!H40), 0),0)+IFERROR(IF('3-Fleet Energy Use'!$B$7="Yes", ((('3-Fleet Energy Use'!B32)*('3-Fleet Energy Use'!C32))*'5 - Reference Data'!H40), 0),0) -> 0 | E36: =B36+(C36*'5 - Reference Data'!$B$45)+(D36*'5 - Reference Data'!$B$46) -> 0 | F36: =IFERROR(IF('3-Fleet Energy Use'!$B$7="Yes", ((('3-Fleet Energy Use'!B32)*(1-'3-Fleet Energy Use'!C32))*'5 - Reference Data'!D40), 0),0) -> 0 | G36: =IFERROR(IF('3-Fleet Energy Use'!$B$7="Yes", ((('3-Fleet Energy Use'!B32)*('3-Fleet Energy Use'!C32))*'5 - Reference Data'!D40), 0),0) -> 0
A37: Total fleet energy use | B37: =SUM(B35:B36,B33,B30:B31,B24:B28) -> 0 | C37: 0 | D37: 0 | E37: 0 | F37: =SUM(F35:F36,F33,F30:F31,F24:F28) -> 0 | G37: =SUM(G35:G36,G33,G30:G31,G24:G28) -> 0
A40: Comments

Sheet 5 - Reference Data
A1: Reference Data
A3: Conversion Factors
A4: 1000 | B4: kg/MT
A5: 0.1 | B5: mmBtu/therm
A6: 2.20462 | B6: lb/kg
A7: 42 | B7: gal/bbl liquid fuel
A8: 1000 | B8: kWh/MWh
A9: 1.194 | B9: MMBtu/klb steam
A11: Stationary Sources
A12: Fuel | B12: High heat value (mmBtu/scf) | C12: CO2 emission factor (kg CO2/mmBtu) | D12: CO2 emission factor (MT CO2/therm) | E12: CH4 emission factor (kg CH4/mmBtu) | F12: CH4 emission factor (MT CH4/therm) | G12: N2O emissions factor (kg N2O/mmBtu) | H12: N2O emission factor (MT N2O/therm)
A13: Natural gas | B13: 0.001026 | C13: 53.06 | D13: =C13*A5/A4 -> 0.005306 | E13: =1*10^-3 -> 0.001 | F13: =E13*A5/A4 -> 1e-07 | G13: =1*10^-4 -> 0.0001 | H13: =G13*A5/A4 -> 1e-08
A14: Fuel | B14: High heat value (mmBtu/gallon) | C14: CO2 emission factor (kg CO2/mmBtu) | D14: CO2 emission factor (MT CO2/gallon) | E14: CH4 emission factor (kg CH4/mmBtu) | F14: CH4 emission factor (MT CH4/gallon) | G14: N2O emissions factor (kg N2O/mmBtu) | H14: N2O emission factor (MT N2O/gallon)
A15: Diesel (distillate #2) | B15: 0.138 | C15: 73.96 | D15: =B15*C15/$A$4 -> 0.01020648 | E15: =3*10^-3 -> 0.003 | F15: =B15*E15/$A$4 -> 4.14e-07 | G15: =6*10^-4 -> 0.0006 | H15: =B15*G15/$A$4 -> 8.28e-08
A16: Propane | B16: 0.091 | C16: 62.87 | D16: =B16*C16/$A$4 -> 0.00572117 | E16: =3*10^-3 -> 0.003 | F16: =B16*E16/$A$4 -> 2.73e-07 | G16: =6*10^-4 -> 0.0006 | H16: =B16*G16/$A$4 -> 5.46e-08
A17: Fuel oil | B17: 0.138 | C17: 73.96 | D17: =B17*C17/$A$4 -> 0.01020648 | E17: =3*10^-3 -> 0.003 | F17: =B17*E17/$A$4 -> 4.14e-07 | G17: =6*10^-4 -> 0.0006 | H17: =B17*G17/$A$4 -> 8.28e-08
A18: Gasoline | B18: 0.125 | C18: 70.22 | D18: =B18*C18/$A$4 -> 0.0087775 | E18: =3*10^-3 -> 0.003 | F18: =B18*E18/$A$4 -> 3.75e-07 | G18: =6*10^-4 -> 0.0006 | H18: =B18*G18/$A$4 -> 7.5e-08
A19: Source: EPA 40 C.F.R Part 98 as adopted in WAC 173-441
A21: Electricity
A22: Fuel | B22: CO2 emission factor (kg CO2/kWh) | C22: CO2 emission factor (MT CO2/kWh) | D22: CH4 emission factor (kg CH4/MWh) | E22: CH4 emission factor (MT CH4/kWh) | F22: N2O emissions factor (kg N2O/MWh) | G22: N2O emission factor (MT N2O/kWh)
A23: Purchased electricity | B23: 0.176 | C23: =B23/$A$4 -> 0.000176 | D23: 0.034 | E23: =D23/($A$6*$A$4*$A$8) -> 1.542215892e-08 | F23: 0.004 | G23: =F23/($A$6*$A$4*$A$8) -> 1.814371638e-09
A24: Purchased electricity - renewable | B24: =IFERROR(IF('2-Building Energy Use'!F13="", 0, '2-Building Energy Use'!F13/($A$4*$A$6)),0) -> 0 | C24: =IF('2-Building Energy Use'!F13="", 0, B24/$A$4) -> 0 | D24: =IFERROR(IF('2-Building Energy Use'!G13="", 0, '2-Building Energy Use'!G13/($A$4*$A$6)),0) -> 0 | E24: =IF('2-Building Energy Use'!G13="", 0, D24/$A$4) -> 0 | F24: =IFERROR(IF('2-Building Energy Use'!H13="", 0, '2-Building Energy Use'!H13/($A$4*$A$6)),0) -> 0 | G24: =IF('2-Building Energy Use'!H13="", 0, F24/$A$4) -> 0
A25: Fuel | B25: CO2 emission factor (kg CO2/mmBtu) | C25: CO2 emission factor (MT CO2/klb) | D25: CH4 emission factor (kg CH4/mmBtu) | E25: CH4 emission factor (MT CH4/klb) | F25: N2O emissions factor (kg N2O/mmBtu) | G25: N2O emission factor (MT N2O/klb)
A26: Purchased steam | B26: 66.33 | C26: =B26*$A$9/$A$4 -> 0.07919802 | D26: =1.25/$A$4 -> 0.00125 | E26: =D26*$A$9/$A$4 -> 1.4925e-06 | F26: =0.125/1000 -> 0.000125 | G26: =F26*$A$9/$A$4 -> 1.4925e-07
A27: Source: CO2 purchased electricity EF - WA Fuel Mix Disclosure (2018) (https://www.commerce.wa.gov/growing-the-economy/energy/fuel-mix-disclosure/)
A28: Source: CH4 and N2O purchased electricity EFs - eGrid fuel mix profile (https://www.epa.gov/energy/emissions-generation-resource-integrated-database-egrid)
A29: Source: CO2, CH4 and N2O purchased electricity - renewable EFs - Zero unless reporter enters values from green contract on 2-Building Energy Use spreadsheet
A30: Source: CO2, CH4, and N2O purchased steam EFs - EPA Emission Factors for Greenhouse Gas Inventories (https://www.epa.gov/sites/production/files/2018-03/documents/emission-factors_mar_2018_0.pdf)
A32: Fleets
A33: Fuel | B33: Default high heat value (mmBtu/gallon) | C33: CO2 emission factor (MT CO2/bbl) | D33: CO2 emission factor (MT CO2/gallon) | E33: CH4 emission factor (kg CH4/mmBtu) | F33: CH4 emission factor (MT CH4/gallon) | G33: N2O emissions factor (kg N2O/mmBtu) | H33: N2O emission factor (MT N2O/gallon)
A34: Gasoline | B34: 0.125 | C34: 0.3763 | D34: =C34/$A$7 -> 0.00895952381 | E34: =3*10^-3 -> 0.003 | F34: =B34*E34/$A$4 -> 3.75e-07 | G34: =6*10^-4 -> 0.0006 | H34: =G34*B34/$A$4 -> 7.5e-08
A35: Ethanol (E100) | B35: 0.084 | C35: 0.2422 | D35: =C35/$A$7 -> 0.005766666667 | E35: =1.1*10^-3 -> 0.0011 | F35: 9.24e-08 | G35: =1.1*10^-4 -> 0.00011 | H35: 9.24e-09
A36: Diesel | B36: 0.138 | C36: 0.4296 | D36: 0.01022857143 | E36: =3*10^-3 -> 0.003 | F36: 4.14e-07 | G36: =6*10^-4 -> 0.0006 | H36: 8.28e-08
A37: Biodiesel (B100) | B37: 0.128 | C37: 0.3957 | D37: 0.009421428571 | E37: =1.1*10^-3 -> 0.0011 | F37: 1.408e-07 | G37: =1.1*10^-4 -> 0.00011 | H37: 1.408e-08
A38: Propane | B38: 0.091 | C38: 0.241 | D38: 0.005738095238 | E38: =3*10^-3 -> 0.003 | F38: 2.73e-07 | G38: =6*10^-4 -> 0.0006 | H38: 5.46e-08
A39: Aviation gasoline | B39: 0.125 | C39: 0.349 | D39: 0.00830952381 | E39: =3*10^-3 -> 0.003 | F39: 3.75e-07 | G39: =6*10^-4 -> 0.0006 | H39: 7.5e-08
A40: Jet fuel | B40: 0.135 | C40: 0.4095 | D40: 0.00975 | E40: =3*10^-3 -> 0.003 | F40: 4.05e-07 | G40: =6*10^-4 -> 0.0006 | H40: 8.1e-08
A41: Source: EPA 40 C.F.R Part 98
A43: Global Warming Potentials (100 yr)
A44: CO2 | B44: 1
A45: CH4 | B45: 25
A46: N2O | B46: 298
A47: Source: WAC 173-441
A49: Reporters | B49: Code
A50: Central Washington University (CWU) | B50: 3750
A51: Department of Agriculture (AGR) | B51: 4950
A52: Department of Commerce (COM) | B52: 1030
A53: Department of Corrections (DOC) | B53: 3100
A54: Department of Ecology (ECY) | B54: 4610
A55: Department of Enterprise Services (DES) | B55: 1790
A56: Department of Fish and Wildlife (DFW) | B56: 4770
A57: Department of Health (DOH) | B57: 3030
A58: Department of Labor and Industries (L&I) | B58: 2350
A59: Department of Natural Resources (DNR) | B59: 4900
A60: Department of Social and Health Services (DSHS) | B60: 3000
A61: Department of Transportation (DOT) | B61: 4050
A62: Department of Veterans' Affairs (DVA) | B62: 3050
A63: Eastern Washington University (EWU) | B63: 3700
A64: The Evergreen State College (TESC) | B64: 3760
A65: Highline College (HC) | B65: 6520
A66: Liquor and Cannabis Board (LCB) | B66: 1950
A67: Seattle Community College - District 6 (SCCD-6) | B67: 6700
A68: Spokane Community College - District 17 (SCCD-17) | B68: 6760
A69: State Parks and Recreation (PARKS) | B69: 4650
A70: University of Washington (UW) | B70: 3600
A71: Washington State Patrol (WSP) | B71: 2250
A72: Washington State University (WSU) | B72: 3650
A73: Western Washington University (WWU) | B73: 3800

Sheet 6 - Ecology (hidden)
A1: SA_Code | B1: SA_Name | C1: SA_Year | D1: SA_Category | E1: SA_Fuel | F1: SA_Fuel_Details | G1: SA_Fuel_Quantity | H1: SA_Fuel_Quantity_Unit | I1: SA_Biofuel_Perc | J1: SA_GHG_Rep_Quantity | K1: SA_GHG_CO2e_Rep_Quantity | L1: SA_GHG_Quantity_Unit | M1: SA_GHG_Name | P1: SA_Code | Q1: SA_Name | R1: SA_Year | S1: SA_Contact_Name | T1: SA_Contact_Phone | U1: SA_Contact_Email | V1: SA_Category | W1: SA_Category_Quantity | X1: SA_Category_Quantity_Unit
D2: Stationary Combustion | E2: Natural Gas (Weighted U.S. Average) | L2: MT | M2: CO2 | P2: =$A$2 -> 0 | Q2: =$B$2 -> 0 | R2: =$C$2 -> 0
A3: =$A$2 -> 0 | B3: =$B$2 -> 0 | C3: =$C$2 -> 0 | D3: Stationary Combustion | E3: Natural Gas (Weighted U.S. Average) | L3: MT | M3: CH4 | P3: =$A$2 -> 0 | Q3: =$B$2 -> 0 | R3: =$C$2 -> 0 | V3: Employees
A4: 0 | B4: 0 | C4: 0 | D4: Stationary Combustion | E4: Natural Gas (Weighted U.S. Average) | L4: MT | M4: N2O | P4: 0 | Q4: 0 | R4: 0 | V4: People served
A5: 0 | B5: 0 | C5: 0 | D5: Stationary Combustion | E5: Distillate Fuel Oil No. 2 | L5: MT | M5: CO2 | P5: 0 | Q5: 0 | R5: 0 | V5: Agency owned space | X5: ft2
A6: 0 | B6: 0 | C6: 0 | D6: Stationary Combustion | E6: Distillate Fuel Oil No. 2 | L6: MT | M6: CH4 | P6: 0 | Q6: 0 | R6: 0 | V6: Space leased in DES building | X6: ft2
A7: 0 | B7: 0 | C7: 0 | D7: Stationary Combustion | E7: Distillate Fuel Oil No. 2 | L7: MT | M7: N2O | P7: 0 | Q7: 0 | R7: 0 | V7: Space leased from another agency | X7: ft2
A8: 0 | B8: 0 | C8: 0 | D8: Stationary Combustion | E8: Propane | L8: MT | M8: CO2 | P8: 0 | Q8: 0 | R8: 0 | V8: Space leased in privately building | X8: ft2
A9: 0 | B9: 0 | C9: 0 | D9: Stationary Combustion | E9: Propane | L9: MT | M9: CH4 | P9: 0 | Q9: 0 | R9: 0 | V9: Total space | X9: ft2
A10: 0 | B10: 0 | C10: 0 | D10: Stationary Combustion | E10: Propane | L10: MT | M10: N2O
A11: 0 | B11: 0 | C11: 0 | D11: Stationary Combustion | E11: Distillate Fuel Oil No. 2 | F11: Fuel Oil | L11: MT | M11: CO2
A12: 0 | B12: 0 | C12: 0 | D12: Stationary Combustion | E12: Distillate Fuel Oil No. 2 | F12: Fuel Oil | L12: MT | M12: CH4
A13: 0 | B13: 0 | C13: 0 | D13: Stationary Combustion | E13: Distillate Fuel Oil No. 2 | F13: Fuel Oil | L13: MT | M13: N2O
A14: 0 | B14: 0 | C14: 0 | D14: Stationary Combustion | E14: Motor Gasoline | L14: MT | M14: CO2
A15: 0 | B15: 0 | C15: 0 | D15: Stationary Combustion | E15: Motor Gasoline | L15: MT | M15: CH4
A16: 0 | B16: 0 | C16: 0 | D16: Stationary Combustion | E16: Motor Gasoline | L16: MT | M16: N2O
A17: 0 | B17: 0 | C17: 0 | D17: Electricity_Unspecified | L17: MT | M17: CO2
A18: 0 | B18: 0 | C18: 0 | D18: Electricity_Unspecified | L18: MT | M18: CH4
A19: 0 | B19: 0 | C19: 0 | D19: Electricity_Unspecified | L19: MT | M19: N2O
A20: 0 | B20: 0 | C20: 0 | D20: Electricity_Renewable | L20: MT | M20: CO2
A21: 0 | B21: 0 | C21: 0 | D21: Electricity_Renewable | L21: MT | M21: CH4
A22: 0 | B22: 0 | C22: 0 | D22: Electricity_Renewable | L22: MT | M22: N2O
A23: 0 | B23: 0 | C23: 0 | D23: Steam | L23: MT | M23: CO2
A24: 0 | B24: 0 | C24: 0 | D24: Steam | L24: MT | M24: CH4
A25: 0 | B25: 0 | C25: 0 | D25: Steam | L25: MT | M25: N2O
A26: 0 | B26: 0 | C26: 0 | D26: Motor Vehicle | E26: Gasoline-Other | F26: Conventional-Summer-Premium | L26: MT | M26: CO2
A27: 0 | B27: 0 | C27: 0 | D27: Motor Vehicle | E27: Gasoline-Other | F27: Conventional-Summer-Premium | L27: MT | M27: CH4
A28: 0 | B28: 0 | C28: 0 | D28: Motor Vehicle | E28: Gasoline-Other | F28: Conventional-Summer-Premium | L28: MT | M28: N2O
A29: 0 | B29: 0 | C29: 0 | D29: Motor Vehicle | E29: Ethanol (100%) | L29: MT | M29: Bio_CO2
A30: 0 | B30: 0 | C30: 0 | D30: Motor Vehicle | E30: Ethanol (100%) | L30: MT | M30: CH4
A31: 0 | B31: 0 | C31: 0 | D31: Motor Vehicle | E31: Ethanol (100%) | L31: MT | M31: N2O
A32: 0 | B32: 0 | C32: 0 | D32: Motor Vehicle | E32: Distillate No. 2 - Ultra Low Sulfur | F32: Retail purchases | L32: MT | M32: CO2
A33: 0 | B33: 0 | C33: 0 | D33: Motor Vehicle | E33: Distillate No. 2 - Ultra Low Sulfur | F33: Retail purchases | L33: MT | M33: CH4
A34: 0 | B34: 0 | C34: 0 | D34: Motor Vehicle | E34: Distillate No. 2 - Ultra Low Sulfur | F34: Retail purchases | L34: MT | M34: N2O
A35: =$A$2 -> 0 | B35: =$B$2 -> 0 | C35: =$C$2 -> 0 | D35: Motor Vehicle | E35: Biodiesel (100%, methyl ester) | F35: Retail purchases | L35: MT | M35: Bio_CO2
A36: 0 | B36: 0 | C36: 0 | D36: Motor Vehicle | E36: Biodiesel (100%, methyl ester) | F36: Retail purchases | L36: MT | M36: CH4
A37: 0 | B37: 0 | C37: 0 | D37: Motor Vehicle | E37: Biodiesel (100%, methyl ester) | F37: Retail purchases | L37: MT | M37: N2O
A38: 0 | B38: 0 | C38: 0 | D38: Motor Vehicle | E38: Distillate No. 2 - Ultra Low Sulfur | F38: WSDOT fueling stations | L38: MT | M38: CO2
A39: 0 | B39: 0 | C39: 0 | D39: Motor Vehicle | E39: Distillate No. 2 - Ultra Low Sulfur | F39: WSDOT fueling stations | L39: MT | M39: CH4
A40: 0 | B40: 0 | C40: 0 | D40: Motor Vehicle | E40: Distillate No. 2 - Ultra Low Sulfur | F40: WSDOT fueling stations | L40: MT | M40: N2O
A41: 0 | B41: 0 | C41: 0 | D41: Motor Vehicle | E41: Biodiesel (100%, methyl ester) | F41: WSDOT fueling stations | L41: MT | M41: Bio_CO2
A42: 0 | B42: 0 | C42: 0 | D42: Motor Vehicle | E42: Biodiesel (100%, methyl ester) | F42: WSDOT fueling stations | L42: MT | M42: CH4
A43: 0 | B43: 0 | C43: 0 | D43: Motor Vehicle | E43: Biodiesel (100%, methyl ester) | F43: WSDOT fueling stations | L43: MT | M43: N2O
A44: 0 | B44: 0 | C44: 0 | D44: Motor Vehicle | E44: Distillate No. 2 - Ultra Low Sulfur | F44: Bulk purchases | L44: MT | M44: CO2
A45: 0 | B45: 0 | C45: 0 | D45: Motor Vehicle | E45: Distillate No. 2 - Ultra Low Sulfur | F45: Bulk purchases | L45: MT | M45: CH4
A46: 0 | B46: 0 | C46: 0 | D46: Motor Vehicle | E46: Distillate No. 2 - Ultra Low Sulfur | F46: Bulk purchases | L46: MT | M46: N2O
A47: 0 | B47: 0 | C47: 0 | D47: Motor Vehicle | E47: Biodiesel (100%, methyl ester) | F47: Bulk purchases | L47: MT | M47: Bio_CO2
A48: 0 | B48: 0 | C48: 0 | D48: Motor Vehicle | E48: Biodiesel (100%, methyl ester) | F48: Bulk purchases | L48: MT | M48: CH4
A49: 0 | B49: 0 | C49: 0 | D49: Motor Vehicle | E49: Biodiesel (100%, methyl ester) | F49: Bulk purchases | L49: MT | M49: N2O
A50: 0 | B50: 0 | C50: 0 | D50: Motor Vehicle | E50: Propane | L50: MT | M50: CO2
A51: 0 | B51: 0 | C51: 0 | D51: Motor Vehicle | E51: Propane | L51: MT | M51: CH4
A52: 0 | B52: 0 | C52: 0 | D52: Motor Vehicle | E52: Propane | L52: MT | M52: N2O
A53: 0 | B53: 0 | C53: 0 | D53: Motor Vehicle | E53: Propane | L53: MT | M53: Bio_CO2
A54: 0 | B54: 0 | C54: 0 | D54: Motor Vehicle | E54: Propane | L54: MT | M54: CH4
A55: 0 | B55: 0 | C55: 0 | D55: Motor Vehicle | E55: Propane | L55: MT | M55: N2O
A56: 0 | B56: 0 | C56: 0 | D56: Boat | E56: Gasoline-Other | F56: Conventional-Summer-Premium | L56: MT | M56: CO2
A57: 0 | B57: 0 | C57: 0 | D57: Boat | E57: Gasoline-Other | F57: Conventional-Summer-Premium | L57: MT | M57: CH4
A58: 0 | B58: 0 | C58: 0 | D58: Boat | E58: Gasoline-Other | F58: Conventional-Summer-Premium | L58: MT | M58: N2O
A59: 0 | B59: 0 | C59: 0 | D59: Boat | E59: Ethanol (100%) | L59: MT | M59: Bio_CO2
A60: 0 | B60: 0 | C60: 0 | D60: Boat | E60: Ethanol (100%) | L60: MT | M60: CH4
A61: 0 | B61: 0 | C61: 0 | D61: Boat | E61: Ethanol (100%) | L61: MT | M61: N2O
A62: 0 | B62: 0 | C62: 0 | D62: Boat | E62: Distillate No. 2 - Ultra Low Sulfur | L62: MT | M62: CO2
A63: 0 | B63: 0 | C63: 0 | D63: Boat | E63: Distillate No. 2 - Ultra Low Sulfur | L63: MT | M63: CH4
A64: 0 | B64: 0 | C64: 0 | D64: Boat | E64: Distillate No. 2 - Ultra Low Sulfur | L64: MT | M64: N2O
A65: 0 | B65: 0 | C65: 0 | D65: Boat | E65: Biodiesel (100%, methyl ester) | L65: MT | M65: Bio_CO2
A66: 0 | B66: 0 | C66: 0 | D66: Boat | E66: Biodiesel (100%, methyl ester) | L66: MT | M66: CH4
A67: =$A$2 -> 0 | B67: =$B$2 -> 0 | C67: =$C$2 -> 0 | D67: Boat | E67: Biodiesel (100%, methyl ester) | L67: MT | M67: N2O
A68: 0 | B68: 0 | C68: 0 | D68: Ferry | E68: Distillate No. 2 - Ultra Low Sulfur | L68: MT | M68: CO2
A69: 0 | B69: 0 | C69: 0 | D69: Ferry | E69: Distillate No. 2 - Ultra Low Sulfur | L69: MT | M69: CH4
A70: 0 | B70: 0 | C70: 0 | D70: Ferry | E70: Distillate No. 2 - Ultra Low Sulfur | L70: MT | M70: N2O
A71: 0 | B71: 0 | C71: 0 | D71: Ferry | E71: Biodiesel (100%, methyl ester) | L71: MT | M71: Bio_CO2
A72: 0 | B72: 0 | C72: 0 | D72: Ferry | E72: Biodiesel (100%, methyl ester) | L72: MT | M72: CH4
A73: 0 | B73: 0 | C73: 0 | D73: Ferry | E73: Biodiesel (100%, methyl ester) | L73: MT | M73: N2O
A74: 0 | B74: 0 | C74: 0 | D74: Aircraft | E74: Aviation Gasoline | L74: MT | M74: CO2
A75: 0 | B75: 0 | C75: 0 | D75: Aircraft | E75: Aviation Gasoline | L75: MT | M75: CH4
A76: 0 | B76: 0 | C76: 0 | D76: Aircraft | E76: Aviation Gasoline | L76: MT | M76: N2O
A77: 0 | B77: 0 | C77: 0 | D77: Aircraft | E77: Ethanol (100%) | L77: MT | M77: Bio_CO2
A78: 0 | B78: 0 | C78: 0 | D78: Aircraft | E78: Ethanol (100%) | L78: MT | M78: CH4
A79: 0 | B79: 0 | C79: 0 | D79: Aircraft | E79: Ethanol (100%) | L79: MT | M79: N2O
A80: 0 | B80: 0 | C80: 0 | D80: Aircraft | E80: Kerosene-Type Jet Fuel | L80: MT | M80: CO2
A81: 0 | B81: 0 | C81: 0 | D81: Aircraft | E81: Kerosene-Type Jet Fuel | L81: MT | M81: CH4
A82: 0 | B82: 0 | C82: 0 | D82: Aircraft | E82: Kerosene-Type Jet Fuel | L82: MT | M82: N2O
A83: 0 | B83: 0 | C83: 0 | D83: Aircraft | E83: Kerosene-Type Jet Fuel | L83: MT | M83: Bio_CO2
A84: 0 | B84: 0 | C84: 0 | D84: Aircraft | E84: Kerosene-Type Jet Fuel | L84: MT | M84: CH4
A85: 0 | B85: 0 | C85: 0 | D85: Aircraft | E85: Kerosene-Type Jet Fuel | L85: MT | M85: N2O
A86: 0 | B86: 0 | C86: 0 | D86: Stationary Combustion | E86: Biodiesel (100%, methyl ester) | L86: MT | M86: Bio_CO2
A87: 0 | B87: 0 | C87: 0 | D87: Stationary Combustion | E87: Biodiesel (100%, methyl ester) | L87: MT | M87: CH4
A88: 0 | B88: 0 | C88: 0 | D88: Stationary Combustion | E88: Biodiesel (100%, methyl ester) | L88: MT | M88: N2O
A89: 0 | B89: 0 | C89: 0 | D89: Stationary Combustion | E89: Ethanol (100%) | L89: MT | M89: Bio_CO2
A90: 0 | B90: 0 | C90: 0 | D90: Stationary Combustion | E90: Ethanol (100%) | L90: MT | M90: CH4
A91: 0 | B91: 0 | C91: 0 | D91: Stationary Combustion | E91: Ethanol (100%) | L91: MT | M91: N2O
A92: 0 | B92: 0 | C92: 0 | D92: Stationary Combustion | E92: Kerosene-Type Jet Fuel | L92: MT | M92: CO2
A93: 0 | B93: 0 | C93: 0 | D93: Stationary Combustion | E93: Kerosene-Type Jet Fuel | L93: MT | M93: CH4
A94: 0 | B94: 0 | C94: 0 | D94: Stationary Combustion | E94: Kerosene-Type Jet Fuel | L94: MT | M94: N2O
A95: 0 | B95: 0 | C95: 0 | D95: Stationary Combustion | E95: Aviation Gasoline | L95: MT | M95: CO2
A96: 0 | B96: 0 | C96: 0 | D96: Stationary Combustion | E96: Aviation Gasoline | L96: MT | M96: CH4
A97: 0 | B97: 0 | C97: 0 | D97: Stationary Combustion | E97: Aviation Gasoline | L97: MT | M97: N2O
A98: 0 | B98: 0 | C98: 0 | D98: Motor Vehicle | E98: Natural Gas (Weighted U.S. Average) | L98: MT | M98: CO2
A99: 0 | B99: 0 | C99: 0 | D99: Motor Vehicle | E99: Natural Gas (Weighted U.S. Average) | L99: MT | M99: CH4
A100: 0 | B100: 0 | C100: 0 | D100: Motor Vehicle | E100: Natural Gas (Weighted U.S. Average) | L100: MT | M100: N2O
A101: 0 | B101: 0 | C101: 0 | D101: Motor Vehicle | E101: Natural Gas (Weighted U.S. Average) | L101: MT | M101: CO2
A102: 0 | B102: 0 | C102: 0 | D102: Motor Vehicle | E102: Natural Gas (Weighted U.S. Average) | L102: MT | M102: CH4
A103: 0 | B103: 0 | C103: 0 | D103: Motor Vehicle | E103: Natural Gas (Weighted U.S. Average) | L103: MT | M103: N2O
A104: 0 | B104: 0 | C104: 0 | D104: Stationary Combustion | E104: Wood products | L104: MT | M104: Bio_CO2
A105: 0 | B105: 0 | C105: 0 | D105: Stationary Combustion | E105: Wood products | L105: MT | M105: CH4
A106: 0 | B106: 0 | C106: 0 | D106: Stationary Combustion | E106: Wood products | L106: MT | M106: N2O
A107: 0 | B107: 0 | C107: 0 | D107: Motor Vehicle | E107: Gasoline-Other | L107: MT | M107: HFC
A108: 0 | B108: 0 | C108: 0 | D108: Motor Vehicle | E108: Distillate No. 2 - Ultra Low Sulfur | F108: Retail purchases | L108: MT | M108: HFC
A109: 0 | B109: 0 | C109: 0 | D109: Motor Vehicle | E109: Distillate No. 2 - Ultra Low Sulfur | F109: WSDOT fueling stations | L109: MT | M109: HFC
A110: 0 | B110: 0 | C110: 0 | D110: Motor Vehicle | E110: Distillate No. 2 - Ultra Low Sulfur | F110: Bulk purchases | L110: MT | M110: HFC
A111: 0 | B111: 0 | C111: 0 | D111: Motor Vehicle | E111: Propane | L111: MT | M111: HFC
A112: 0 | B112: 0 | C112: 0 | D112: Boat | E112: Gasoline-Other | L112: MT | M112: HFC
A113: 0 | B113: 0 | C113: 0 | D113: Boat | E113: Distillate No. 2 - Ultra Low Sulfur | L113: MT | M113: HFC
A114: 0 | B114: 0 | C114: 0 | D114: Ferry | E114: Distillate No. 2 - Ultra Low Sulfur | L114: MT | M114: HFC
A115: 0 | B115: 0 | C115: 0 | D115: Aircraft | E115: Aviation Gasoline | L115: MT | M115: HFC
A116: 0 | B116: 0 | C116: 0 | D116: Aircraft | E116: Kerosene-Type Jet Fuel | L116: MT | M116: HFC
A117: 0 | B117: 0 | C117: 0 | D117: Motor Vehicle | E117: Natural Gas (Weighted U.S. Average) | L117: MT | M117: HFC
A118: 0 | B118: 0 | C118: 0 | D118: Motor Vehicle | E118: Natural Gas (Weighted U.S. Average) | L118: MT | M118: HFC
A119: 0 | B119: 0 | C119: 0 | D119: Motor Vehicle | E119: Butanol | L119: MT | M119: CO2
A120: 0 | B120: 0 | C120: 0 | D120: Motor Vehicle | E120: Butanol | L120: MT | M120: CH4
A121: 0 | B121: 0 | C121: 0 | D121: Motor Vehicle | E121: Butanol | L121: MT | M121: N2O
A122: 0 | B122: 0 | C122: 0 | D122: Motor Vehicle | E122: Butanol | L122: MT | M122: Bio_CO2
A123: 0 | B123: 0 | C123: 0 | D123: Motor Vehicle | E123: Butanol | L123: MT | M123: CH4
A124: 0 | B124: 0 | C124: 0 | D124: Motor Vehicle | E124: Butanol | L124: MT | M124: N2O
A125: 0 | B125: 0 | C125: 0 | D125: Motor Vehicle | E125: Butanol | L125: MT | M125: HFC
